Cogmind - Beta 16 --- EXPLORER MODE // 2026.01.07 @ 10:15:57 Player: K.K.Y. Result: Destroyed by D-53 Grenadier with Mini Grenade Launcher Performance ------------- Evolutions (0) 0 Regions Visited (2) 400 Robots Destroyed (27) 135 Value Destroyed (459) 459 Prototype IDs (0) 0 Alien Tech Used (0) 0 Bonus (0) 0 TOTAL SCORE: 994 Bonus ------- None Cogmind --------- Core Integrity 0/250 Matter 240/300 Energy 42/100 System Corruption 0% Temperature Cool (24) Movement Rolling (90) Location -10/Mines Parts ------- > --- POWER (1) -------- (None) > --- PROPULSION (2) --- Wheel Compact Wheel > --- UTILITY (3) ------ Large Storage Unit > --- WEAPON (2) ------- Beamcaster > --- INVENTORY (15) --- Fission Core Wheel Wheel Wheel Wheel Wheel Medium Storage Unit High-capacity Storage Unit Structural Scanner Structural Scanner Sensor Array Light Armor Plating Light Armor Plating Light Armor Plating Mining Laser Peak State ------------ > --- POWER ------------ Ion Engine > --- PROPULSION ------- Compact Wheel Compact Wheel > --- UTILITY ---------- Large Storage Unit Light Armor Plating Light Armor Plating > --- WEAPON ----------- Subdweller Machine Gun Mining Laser > --- INVENTORY -------- Wheel Wheel Wheel Wheel Wheel Medium Storage Unit High-capacity Storage Unit Structural Scanner Structural Scanner Sensor Array Light Armor Plating Light Armor Plating Light Armor Plating Light Armor Plating Light Armor Plating [Rating: 10] Favorites ----------- Power Ion Engine Engine Ion Engine Propulsion Light Treads Treads Light Treads Wheel Compact Wheel Utility Light Armor Plating Storage Large Storage Unit Protection Light Armor Plating Weapon Mining Laser Energy Gun Medium Laser Ballistic Gun Subdweller Machine Gun Special Weapon Mining Laser Build | -11 -10 -10 ------- Run | Yrd Mat Min Slots Evolved 1 | . 1 . Power . | . . . Propulsion . | . . . Utility 1 | . 1 . Weapon . | . . . Parts Attached 22 | 7 9 6 Power 1 | 1 . . Engine 1 | 1 . . Core . | . . . Reactor . | . . . Propulsion 10 | 2 6 2 Treads 3 | 2 1 . Leg . | . . . Wheel 7 | . 5 2 Hover . | . . . Flight . | . . . Utility 5 | 2 1 2 Device . | . . . Storage 1 | . 1 . Processor . | . . . Hackware . | . . . Protection 4 | 2 . 2 Artifact . | . . . Weapon 6 | 2 2 2 Energy Gun 3 | 2 . 1 Energy Cannon . | . . . Ballistic Gun 2 | . 1 1 Ballistic Cannon . | . . . Launcher . | . . . Special Weapon 1 | . 1 . Impact Weapon . | . . . Slashing Weapon . | . . . Piercing Weapon . | . . . Special Melee Weapon . | . . . Unidentified Prototypes . | . . . Parts Lost 10 | . 2 8 Power 1 | . . 1 Propulsion 1 | . . 1 Utility 4 | . . 4 Weapon 4 | . 2 2 Highest Loss Streak 5 | . 2 5 To Critical Strikes . | . . . Average Backups 8 | 1 8 13 Power . | . . . Propulsion 1 | . . 4 Utility 7 | . 7 8 Weapon . | . . . Tool/Special . | . . . Unused Backups 10 | . . 10 Power 1 | . . 1 Propulsion 1 | . . 1 Utility 8 | . . 8 Weapon . | . . . Tool/Special . | . . . Average Slot Usage (%) 77 | . 77 82 Engine 11 | . 12 10 Treads 6 | . 6 . Wheel 7 | . 5 25 Storage 11 | . 11 12 Protection 24 | . 25 20 Energy Gun 6 | . 6 . Ballistic Gun 1 | . . 9 Special Weapon 8 | . 8 3 Peak Build Rating 10 | 7 10 10 Average Rating 6 | 5 6 8 On Entrance 5 | . 7 10 Avg Prop Armor Cover (%) 8 | . 8 . Naked Turns . | . . . Heaviest Build 36 | 15 36 36 Greatest Support 40 | 40 40 32 Greatest Overweight (x) 10 | . 10 1 Average Overweight (x) 2 | . 2 . Largest Inventory Capacity 15 | 5 15 15 Average Capacity 13 | 5 14 15 Most Carried 15 | 5 15 15 Average Carried 8 | 1 8 13 Final Capacity 15 | 5 15 15 Final Carried 15 | 2 15 15 Class Distribution -------------------- 100% | Hacker-Mutant Dominant Class ---------------- Hacker-Mutant | -10/Materials Hacker-Mutant | -10/Mines Resources | -11 -10 -10 ----------- Run | Yrd Mat Min Matter Collected 520 | 270 179 71 Remotely . | . . . Salvage Created 887 | 116 562 209 Parts 39 | 7 25 7 Haulers Intercepted 1 | . 1 . Recyclers Shooed 4 | 1 2 1 Parts Field Recycled . | . . . Retrieved Matter . | . . . Parts Self-Destructed . | . . . Prevented . | . . . Parts Restored . | . . . Kills | -11 -10 -10 ------- Run | Yrd Mat Min Combat Hostiles Destroyed 23 | . 13 10 Melee 1 | . . 1 Guns 18 | . 9 9 Classes Destroyed 9 | 2 6 1 Worker 1 | . 1 . Tunneler 4 | 3 1 . Hauler 1 | . 1 . Recycler 3 | 1 1 1 Watcher 3 | . 3 . Swarmer 8 | . 6 2 Grunt 4 | . 4 . Subdweller 3 | . 3 . Assembled 8 | . . 8 Best Kill Streak 7 | 4 5 7 Combat Bots Only 7 | . 4 7 Max Kills in Single Turn 1 | 1 1 1 Gunslinging . | . . . Exploded . | . . . Melee 1 | . . 1 Uniques/NPCs Destroyed . | . . . Combat | -11 -10 -10 -------- Run | Yrd Mat Min Hostile Shots Fired 123 | . 64 59 Missed 31 | . 18 13 Hits 92 | . 46 46 Melee 3 | . . 3 Projectile 89 | . 46 43 AOE 18 | . . 18 Critical Strikes 1 | . 1 . Damage Taken 1118 | . 397 721 Core 258 | . 40 218 Absorbed by Shields . | . . . Ignored by Resistances 682 | . 251 431 Core Remaining (%) 100 | 100 . . Volleys Fired 88 | 6 52 30 Largest 2 | 2 2 1 Hottest 100 | 100 100 75 Shots Fired 126 | 12 85 29 Gun 114 | 12 73 29 Cannon . | . . . Launcher . | . . . Special 12 | . 12 . Kinetic 28 | . . 28 Thermal 98 | 12 85 1 Explosive . | . . . Electromagnetic . | . . . Robot Hit Streak 64 | 6 64 20 Robot Miss Streak 2 | 1 2 2 Penetration Max . | . . . Secondary Targets 3 | . 3 . Max Gunslinging Chain 1 | . 1 . Shots Hit Robots 109 | 8 74 27 Core Hits 43 | 5 24 14 Critical Kills 1 | . . 1 Critical Parts Destroyed 1 | . . 1 Critical Strikes 15 | 1 12 2 Burn 13 | 1 12 . Destroy 2 | . . 2 Melee Attacks . | . . . Impact . | . . . Slashing . | . . . Piercing . | . . . Sneak Attacks . | . . . Combat Hostiles . | . . . Follow-up Attacks . | . . . Damage Inflicted 1638 | 100 1019 519 Guns 1443 | 100 827 516 Cannons . | . . . Explosions . | . . . Melee . | . . . Ramming 3 | . . 3 Kinetic 495 | . . 495 Thermal 1140 | 100 1019 21 Explosive . | . . . Electromagnetic . | . . . Impact . | . . . Slashing . | . . . Piercing . | . . . Highest Corruption . | . . . Average Corruption . | . . . Corruption Purged . | . . . Corruption Blocked . | . . . Overload Shots . | . . . Overflow Damage . | . . . Projectiles . | . . . Explosions . | . . . Melee . | . . . Knockbacks . | . . . Impact . | . . . Kinetic . | . . . Secondary . | . . . Self-Inflicted Damage 1 | . . 1 Shots . | . . . Rammed 1 | . . 1 Targets Rammed 1 | . . 1 Kicked . | . . . Crushed . | . . . Highest Temperature 583 | 171 583 30 Average Temperature 137 | 70 165 11 Received Heat Transfer 185 | . 165 20 Effects 18 | . 18 . Shutdowns 3 | . 3 . Energy Bleed 3 | . 3 . Interference 1 | . 1 . Matter Decay 1 | . 1 . Short Circuit 2 | . 2 . Damage (minor) 2 | . 2 . Damage (major) 6 | . 6 . Siege Activations . | . . . Martial Activations . | . . . Shielding Activations . | . . . Robots Disrupted . | . . . Combat Hostiles . | . . . Robots Corrupted . | . . . Combat Hostiles . | . . . Parts Fried . | . . . Impact Corruptions . | . . . Robots Melted 4 | . 4 . Combat Hostiles 4 | . 4 . Parts Melted 16 | 3 13 . Heat Transferred 4137 | 370 3730 37 Parts Sabotaged . | . . . Parts Stolen . | . . . Parts Stripped . | . . . Power Chain Reactions . | . . . Alert | -11 -10 -10 ------- Run | Yrd Mat Min Maximum Alert Level . | . . . Low Security (%) 100 | 100 100 100 Level 1 . | . . . Level 2 . | . . . Level 3 . | . . . Level 4 . | . . . Level 5 . | . . . High Security . | . . . Max Security . | . . . Peak Influence 92 | 10 92 50 Initial . | . . . Average 5 | 1 5 5 Influence Increases 377 | 20 301 56 Destroy 0b10 Robot/C 240 | . 200 40 Destroy 0b10 Robot/NC 60 | 20 35 5 Destroy Leader 68 | . 58 10 Successful Hack 4 | . 4 . Destroy Structure 5 | . 4 1 Influence Decreases 377 | 20 301 56 Time Decay 337 | 20 286 31 Lost Part 40 | . 15 25 Squads Dispatched . | . . . Investigation . | . . . Extermination . | . . . Reinforcement . | . . . Assault . | . . . Garrison . | . . . Intercept . | . . . Searches Triggered . | . . . Construction Impeded . | . . . Haulers Reinforced . | . . . Active Scanning Responses . | . . . Cargo Convoy Interrupts . | . . . Stealth | -11 -10 -10 --------- Run | Yrd Mat Min Distress Signals 1 | . 1 . Communications Jammed . | . . . Distress Signals . | . . . Times Spotted 39 | . 23 16 Peak Tracking Total 8 | . 5 8 Tactical Retreats 1 | . . 1 Traps | -11 -10 -10 ------- Run | Yrd Mat Min Traps Triggered 1 | . 1 . Indirectly . | . . . Trap Hack Attempts . | . . . Triggered . | . . . Disarmed . | . . . Reprogrammed . | . . . Reused . | . . . Traps Extracted . | . . . Installed . | . . . Triggered . | . . . Machines | -11 -10 -10 ---------- Run | Yrd Mat Min Machines Disabled . | . . . Max in Single Turn . | . . . Machines Repaired . | . . . Machines Dismantled . | . . . Machines Sabotaged . | . . . Overloaded Fab Kills . | . . . Hacking | -11 -10 -10 --------- Run | Yrd Mat Min Machines Accessed 10 | . 10 . Terminals 8 | . 8 . Fabricators . | . . . Repair Stations . | . . . Recycling Units 2 | . 2 . Scanalyzers . | . . . Garrison Access . | . . . Total Hacks 13 | . 13 . Successful 11 | . 11 . Failed 2 | . 2 . Catastrophic . | . . . Database Lockouts . | . . . Manual 10 | . 10 . Terminals 11 | . 11 . Fabricators . | . . . Repair Stations . | . . . Recycling Units 2 | . 2 . Scanalyzers . | . . . Garrison Access . | . . . Terminal Hacks 1 | . 1 . Robot Analysis 1 | . 1 . Fabricator Hacks . | . . . Repair Station Hacks . | . . . Recycling Unit Hacks 2 | . 2 . Retrieve Components 2 | . 2 . Scanalyzer . | . . . Garrison Access Hacks . | . . . Unauthorized Hacks 8 | . 8 . Terminals 8 | . 8 . Botnet 8 | . 8 . Fabricators . | . . . Repair Stations . | . . . Recycling Units . | . . . Scanalyzers . | . . . Garrison Access . | . . . Data Cores Recovered . | . . . Used . | . . . Hacking Detections 4 | . 4 . Full Trace Events . | . . . Feedback Events . | . . . Feedback Blocked . | . . . Robot Schematics Acquired . | . . . Robots Built . | . . . Authchips . | . . . Time . | . . . Total Robot Build Rating . | . . . Part Schematics Acquired . | . . . Parts Built . | . . . Authchips . | . . . Time . | . . . Total Part Build Rating . | . . . Part Studies Acquired . | . . . Parts Repaired . | . . . Time . | . . . Parts Recycled . | . . . Recycled Matter . | . . . Retrieved Matter . | . . . Retrieved Components 19 | . 19 . Parts Scanalyzed . | . . . Part Schematics Acquired . | . . . Parts Damaged . | . . . Bothacking | -11 -10 -10 ------------ Run | Yrd Mat Min Used RIF Installer . | . . . Robots Hacked . | . . . Non-combat . | . . . Combat . | . . . Robot Hacks Applied . | . . . Relay Couplers Released . | . . . Fabnet Peak Effective % . | . . . Robots Rewired . | . . . Allies Hacked . | . . . Hacks Repelled . | . . . Allies | -11 -10 -10 -------- Run | Yrd Mat Min Total Allies 1 | . . 1 Largest Group 1 | . . 1 Highest-Rated Group 31 | . . 31 Highest-Rated Ally 31 | . . 31 Total Orders . | . . . Ally Attacks . | . . . Total Damage . | . . . Kills . | . . . Allies Corrupted . | . . . Allies Melted . | . . . Intel | -11 -10 -10 ------- Run | Yrd Mat Min Active Infowar (turns) . | . . . Robot Analysis Total 1 | . 1 . Derelict Logs Recovered . | . . . Drone Launches . | . . . Drone Recoveries . | . . . Exploration | -11 -10 -10 ------------- Run | Yrd Mat Min Turns Passed 3241 | 170 2793 278 Spaces Moved 1316 | 84 1076 156 Core 184 | 3 181 . Treads 451 | 81 370 . Legs . | . . . Wheels 681 | . 525 156 Hover . | . . . Flight . | . . . Fastest Speed 50 | 50 95 90 Average Speed 188 | 156 203 104 Slowest Speed 550 | 160 550 115 Overloaded Moves . | . . . Propulsion Burnouts . | . . . Robots Hopped . | . . . Potential Cave-ins . | . . . Cave-ins Triggered . | . . . Exploration Rate (%) 42 | 5 98 25 Regions Visited 2 Branch Regions 1 Pre-discovered Areas . | . . . Known Exits Taken 2 | 1 1 . Unknown Exits Taken . | . . . Scrap Searched . | . . . Spaces Dug 3 | . 3 . Terrain Destroyed 5 | . 4 1 Melee . | . . . Projectile 5 | . 4 1 AOE . | . . . Terrain Rammed . | . . . Walls Destroyed . | . . . Machines Disabled . | . . . Actions | -11 -10 -10 --------- Run | Yrd Mat Min Total 1927 | 110 1579 238 Wait 454 | 6 413 35 Move 1314 | 83 1075 156 Hop . | . . . Pick Up 30 | 8 18 4 Fast Attach 5 | 1 3 1 Attach 14 | 6 4 4 Detach 4 | . 3 1 Swap 10 | . 5 5 Drop 7 | . 6 1 Fire 88 | 6 52 30 Melee . | . . . Ram 1 | . . 1 Kick . | . . . Crush . | . . . Escape Stasis . | . . . Rewire . | . . . Trap . | . . . Miscellaneous . | . . . Route ------- -11/Scrapyard -10/Materials (discovered 6 exits: *Mat x3 / *Min x2 / *Sub) -10/Mines (discovered 1 exit: *Mat) History --------- Turn | Location | Event 28 | -11/Scrapyard | Identified exit to Materials 28 | -11/Scrapyard | Discovered exit to Materials (range 14) 171 | -11/Scrapyard | Entered Materials 171 | -10/Materials | Evolved 1 slot: Utility x1 305 | -10/Materials | Build established: Hacker-Mutant 394 | -10/Materials | Identified exit to Materials 394 | -10/Materials | Discovered exit to Materials (range 15) 565 | -10/Materials | Identified exit to Mines 565 | -10/Materials | Discovered exit to Mines (range 15) 771 | -10/Materials | Derelicts attacked the area 1045 | -10/Materials | Discovered exit to Materials (range 16) 1537 | -10/Materials | Discovered exit to Mines (range 13) 2195 | -10/Materials | Discovered exit to Materials (range 13) 2958 | -10/Materials | Identified exit to Subcaves 2958 | -10/Materials | Discovered exit to Subcaves (range 12) 2964 | -10/Materials | Entered Mines 2965 | -10/Mines | Assembled infested the area 2970 | -10/Mines | Assisted by a Guerilla fighting off Assembled 3074 | -10/Mines | Lost 3 parts (2u1w) 3119 | -10/Mines | Destroyed 7 combat bots 3207 | -10/Mines | Core integrity fell below 50% 3215 | -10/Mines | Discovered exit to Materials (range 8) 3216 | -10/Mines | Core integrity fell below 20% 3228 | -10/Mines | Received a Mining Laser from a helpful Derelict 3237 | -10/Mines | Lost 5 parts (1p1n2u1w) 3242 | -10/Mines | Destroyed by D-53 Grenadier with Mini Grenade Launcher Last Messages --------------- 03220_ K-01 Serf destroyed. 03223_ The unstable cave ceiling collapses. 03223_ U-05 Engineer builds a Wall. 03226_ A derelict emerges from the shadows: "What are you doing alone down here?" 03226_ The unstable cave ceiling collapses. 03228_ EZ-Y2S(g): "And why aren't you carrying a mining laser?! Certainly you don't want THEM to uncover you when the ceiling comes crashing down? Here, take my spare." 03229_ Acquired Mining Laser. 03230_ The unstable cave ceiling collapses. 03231_ EZ-Y2S(g): "You're apparently new around these parts, I'll cover you." 03235_ EZ-Y2S(g) destroyed. 03237_ The unstable cave ceiling collapses. 03238_ Acquired Beamcaster. 03239_ K-01 Serf collects debris. 03240_ Destroyed Shock Absorption System. 03242_ The unstable cave ceiling collapses. Map ----- +----------------------------------------------------+ | ???# #???????????????????????????????????????? | | ??## #???????????????????????????????????????? | | ### "#???????????????????????????????????????? | | %% ##???????????????????????????????????????? | | %%%[ ##??????????????????????????????????????? | | ## ##?????????????????????????????????????? | | ?# """ #?????????????????????????????????????? | | ## """ #?????????? ??????????????????????????? | | # "" ##???????### ?????????????????????????? | | # ####???????? ??????????????????????????? | | # ###???????## # ??????????????????????????? | | ## # ####???? # # #?##????????????????????????? | | ?# # ##?## ## ## ##???????????????????????? | | ?# #?# ????????????????????????? | | ## # ### ## #?????????????????????????? | | # # ## #?????????????????????????? | | # # # ???????????????????????????? | | ## ## #????????????????????????????? | | ?## ##???????????????????????????? | | ??### #???????###?????????????????? | | ???## #?????## #?????????????????? | | ????### ##??#### #??????????????????? | | ?????# ### " #### #??????????????????? | | ????# ##??# # ##??????????????????? | | ????# ????# # ## #???????????????????? | | ????## ????### ## @% #???????????????????? | | ?????## ??????# # d = #???????????????? | | ??????# ? ! # # #??????????????? | | ?????# rk # # #?? #??????????????? | | ?????# ####### ##???????????????????? | | ?????## < ???????### ##????????????????????? | | ??????# ?????????###?????????????????????? | | ??????# ?????????????????????????????????? | | ?????? ?????????????????????????????????? | | ?????? #?????????????????????????????????? | | ??????? ??????????????????????????????????? | | ??????? ???????????????????????????????????? | | ????????? ???????????????????????????????????? | | ??????????? ?????????????????????????????????????? | | ?????????????????????????????????????????????????? | | ?????????????????????????????????????????????????? | | ?????????????????????????????????????????????????? | | ?????????????????????????????????????????????????? | | ?????????????????????????????????????????????????? | | ?????????????????????????????????????????????????? | | ?????????????????????????????????????????????????? | | ?????????????????????????????????????????????????? | | ?????????????????????????????????????????????????? | | ?????????????????????????????????????????????????? | | ?????????????????????????????????????????????????? | +----------------------------------------------------+ Best States ------------- Heat Dissipation 25 Energy Generation 10 Energy Capacity 250 Matter Stores 300 Matter Capacity 300 Sight Range 16 Terrain Scan Density 10 Armor Coverage 300 Resistance: KI 35 Resistance: TH 35 Resistance: EX 35 Resistance: EM 35 Resistance: I 35 Resistance: S 35 Resistance: P 35 Evasion (%) 42 Recoil Reduction 2 Offensive Hacking 20 Item Schematics ----------------- None Robot Schematics ------------------ None Fabricated ------------ Nothing Repaired ---------- Nothing Studied --------- None Alien Tech Used ----------------- None Achievements -------------- None Challenges ------------ None Game ------ Seed FusionChromaticDevice Manual? 0 Play Time 00:15:15 Cumulative 256.1 hours Start 2026.01.07 @ 10:03:04 End 2026.01.07 @ 10:15:57 Sessions 1 Manual Loads 0 Difficulty Explorer Special Mode None Game No. 404 Rogue 0 Adventurer 0 Explorer 404 Win Type - Total 0 Types 0/0/0/0/0/0/0/0/0/0 Lore% 72 Gallery% 69 Achievement% 54 Wizard Run 0 Options --------- Layout 1 ASCII 0 Keyboard 0 Movement Mouse Keybinds 0 Fullscreen 1 Font 24/Smallcaps Map View 50x35 Zoom Use 0% Tactical HUD 1 Map Filters NONE Filters NONE Steam 1 RUN: 0cfefa08-8d54-42eb-8bf1-6dfb84b1586f